bitfinex/quotes_ETHUSD_20251217
["timestamp","ask_amount","ask_price","bid_price","bid_amount"]
[1765992163874,3.8226,2878.4,2877.5,0.0912]
[1765992164181,3.8226,2878.4,2877.6,0.35665395]
[1765992164392,3.8226,2878.4,2877.3,1.02938023]
[1765992164546,3.8226,2878.4,2877.5,0.0912]
[1765992164749,2.1762,2877.9,2877.0,0.46438023]
[1765992164985,0.03477429,2877.8,2876.8,0.002]
[1765992165187,5.4338,2877.4,2876.8,0.002]
[1765992165905,3.2576,2876.9,2876.1,0.002]
[1765992166051,5.4338,2876.7,2876.1,0.002]
[1765992166676,3.2576,2876.4,2876.1,0.002]
[1765992166891,5.4338,2876.8,2876.1,0.002]
[1765992167075,0.59988,2877.4,2876.1,0.002]
[1765992167076,3.85748,2877.4,2876.1,0.002]
[1765992167267,3.2576,2877.2,2876.1,0.0367693]
[1765992167468,3.2576,2876.8,2876.1,0.002]
[1765992168059,0.565,2876.9,2876.1,0.002]
[1765992168458,4.09269,2877.1,2876.1,0.002]
[1765992168958,3.8226,2877.2,2876.1,0.002]
[1765992169153,0.54586254,2877.2,2876.1,0.002]
[1765992169358,0.03477429,2877.4,2876.1,0.567]
[1765992169554,3.2576,2877.3,2876.1,0.567]
[1765992169759,0.565,2877.4,2876.1,0.567]
[1765992169954,0.59977429,2877.4,2876.1,0.567]
[1765992170182,0.565,2877.4,2876.1,0.567]
[1765992170487,5.4338,2877.2,2876.1,0.002]
[1765992170657,5.90778,2877.1,2876.1,0.002]
[1765992171058,5.4338,2877.2,2876.2,0.40459313]
[1765992171259,0.565,2877.4,2876.2,0.40459313]
[1765992171659,5.9988,2877.4,2876.2,0.40459313]
[1765992172177,3.2576,2877.1,2876.2,0.40459313]
[1765992172384,3.2576,2877.1,2876.1,0.002]
[1765992172385,3.2576,2876.9,2876.1,0.002]
[1765992172683,2.1762,2877.0,2876.1,0.002]
[1765992174292,0.565,2877.2,2876.1,0.002]
[1765992174784,13.949442,2877.1,2876.1,0.002]
[1765992174984,5.4338,2876.9,2876.1,0.002]
[1765992176190,5.4338,2876.8,2876.1,0.002]
[1765992176391,3.2576,2876.5,2876.1,0.002]
[1765992176586,5.4338,2876.5,2876.1,0.002]
[1765992177088,3.2576,2876.4,2876.1,0.002]
[1765992177301,2.7412,2876.8,2876.1,0.002]
[1765992177474,3.2576,2876.7,2876.1,0.002]
[1765992177878,0.565,2876.8,2876.1,0.002]
[1765992178092,3.2576,2877.1,2876.1,0.002]
[1765992178278,3.8226,2877.1,2876.1,0.002]
[1765992178494,2.122964,2877.0,2876.1,0.002]
[1765992179590,0.565,2877.1,2876.1,0.002]
[1765992179898,0.565,2877.1,2876.1,0.567]
[1765992180413,2.1762,2878.4,2876.3,0.02463661]
[1765992180713,8.94737823,2878.8,2876.1,0.002]
[1765992180714,3.2576,2877.6,2876.1,0.002]
[1765992180907,0.46438023,2877.8,2876.1,0.002]
[1765992180908,6.905582,2877.1,2876.1,0.002]
[1765992181195,5.4338,2877.0,2876.1,0.002]
[1765992181407,0.46438023,2877.9,2876.1,0.002]
[1765992181618,3.2576,2877.1,2876.1,0.002]
[1765992181774,2.191069,2877.1,2876.1,0.002]
[1765992182599,2.1762,2876.9,2876.1,0.002]
[1765992182798,3.2576,2876.4,2876.1,0.002]
[1765992183004,0.46438023,2877.2,2876.0,0.002]
[1765992183005,3.2576,2876.2,2876.0,0.002]
[1765992183613,0.03477429,2876.5,2875.6,0.002]
[1765992183915,0.03477429,2876.5,2875.0,0.002]
[1765992183916,5.4338,2875.9,2875.0,0.002]
[1765992184118,3.2576,2875.7,2875.0,0.002]
[1765992184416,4.18,2876.1,2875.0,0.002]
[1765992184592,3.2576,2875.7,2875.0,0.002]
[1765992184915,29.061495,2875.8,2874.4,0.002]
[1765992184916,3.2576,2875.1,2874.4,0.002]
[1765992185126,0.03477429,2875.0,2874.4,0.002]
[1765992185422,3.2576,2875.1,2874.4,0.002]
[1765992185583,3.85748,2875.1,2874.4,0.002]
[1765992185787,3.85748,2875.1,2873.7,0.567]
[1765992185788,2.1762,2874.7,2873.7,0.567]
[1765992186012,3.2576,2874.6,2873.7,0.567]
[1765992186601,5.4338,2874.4,2873.7,0.567]
[1765992186947,5.4338,2874.1,2873.7,0.002]
[1765992187122,5.4338,2874.0,2873.7,0.002]
[1765992187318,0.03477429,2874.6,2873.2,0.002]
[1765992187319,5.4338,2873.9,2873.2,0.002]
[1765992188229,0.46438023,2874.6,2873.2,0.002]
[1765992188230,3.2576,2874.0,2873.2,0.002]
[1765992188411,5.4338,2873.7,2873.2,0.002]
[1765992188618,3.2576,2873.5,2873.2,0.002]
[1765992188924,3.2576,2873.7,2873.2,0.002]
[1765992189225,3.078,2873.6,2873.2,0.002]
[1765992189391,3.078,2873.4,2873.2,0.002]
[1765992190099,0.565,2873.7,2873.6,0.002]
[1765992190300,3.078,2873.6,2873.2,0.002]
[1765992190505,3.078,2873.4,2873.2,0.002]
[1765992190825,3.078,2873.4,2873.1,0.002]
[1765992190826,3.14857429,2873.3,2873.1,0.002]
[1765992191199,5.36857429,2873.3,2873.1,0.002]
[1765992191527,2.22,2873.6,2873.1,0.002]
[1765992191731,3.1138,2873.4,2873.1,0.002]
[1765992192499,3.1138,2873.3,2873.1,0.002]
[1765992193028,2.22,2873.1,2872.5,0.002]
[1765992193196,3.1138,2872.7,2871.8,0.01]
[1765992193402,5.3338,2872.6,2871.6,0.567]
[1765992194006,3.1138,2872.6,2871.6,0.567]
[1765992194208,3.50471435,2873.5,2871.6,0.567]
[1765992194209,3.1138,2873.2,2871.7,0.014]
[1765992194399,3.1138,2873.2,2871.6,0.567]
[1765992194400,0.565,2872.9,2871.8,3.49610753]
[1765992194601,3.1138,2873.1,2871.9,0.36361075]
[1765992194834,2.22,2873.2,2871.7,0.405504]
[1765992195032,0.565,2873.3,2872.2,0.014]
[1765992195240,22.09549129,2873.3,2871.7,3.88766118]
[1765992195399,3.1138,2873.1,2871.8,3.49610905]
[1765992195608,0.03477429,2873.0,2871.9,0.014]
[1765992195927,0.03477429,2873.0,2872.0,0.34961091]
[1765992196131,2.22,2873.2,2872.0,0.34961091]
[1765992196447,5.3338,2873.1,2872.0,0.34961091]
[1765992196726,3.1138,2873.0,2871.9,3.48201431]
[1765992196937,5.3338,2873.9,2872.4,0.014]
[1765992197227,5.3338,2873.9,2872.6,0.014]
[1765992197228,3.1138,2873.9,2872.6,0.014]
[1765992197435,3.1138,2873.9,2872.7,0.014]
[1765992197636,2.786,2874.0,2872.9,0.014]
[1765992197932,3.1138,2873.9,2872.9,0.014]
[1765992198129,0.001,2874.1,2872.7,0.014]
[1765992199042,3.1138,2873.8,2872.7,0.014]
[1765992199334,0.566,2874.0,2872.9,0.014]
[1765992199538,0.001,2874.1,2872.9,0.014]
[1765992199737,8.578614,2874.0,2872.9,0.014]
[1765992199909,3.14857429,2873.9,2872.6,3.48114875]
[1765992200234,3.1138,2873.8,2872.7,1.24038904]
[1765992200436,5.3338,2873.8,2872.7,0.566]
[1765992200736,0.566,2873.9,2872.5,0.014]
[1765992200941,3.1138,2873.4,2872.1,0.014]
[1765992201128,3.1138,2873.4,2872.2,0.91558178]
[1765992201438,5.3338,2873.4,2872.2,0.91558178]
[1765992201640,3.14857429,2873.3,2872.2,0.566]
[1765992201842,2.22,2873.0,2871.9,0.002]
[1765992202049,3.1138,2872.9,2871.9,0.002]
[1765992202751,3.14857429,2872.8,2871.9,0.002]
[1765992202908,3.1138,2872.5,2871.9,0.002]
[1765992203110,0.03477429,2872.9,2871.9,0.002]
[1765992203308,3.858664,2872.8,2871.9,0.002]
[1765992203625,5.3338,2872.6,2871.9,0.002]
[1765992203811,3.1138,2872.5,2871.9,0.002]
[1765992204015,0.566,2872.6,2871.9,0.002]
[1765992204016,3.1138,2872.3,2871.9,0.002]
[1765992204216,3.1138,2872.0,2871.6,0.002]
[1765992204446,2.22,2871.9,2871.6,0.002]
[1765992204650,3.1138,2871.8,2871.6,0.002]
[1765992205136,5.36857429,2871.7,2871.4,0.002]
[1765992205323,0.87738,2871.8,2871.2,0.002]
[1765992205520,5.3338,2871.5,2870.7,0.002]
[1765992205738,0.46438023,2872.1,2870.7,0.002]
[1765992205957,0.566,2871.9,2870.7,0.002]
[1765992206445,3.6798,2871.9,2870.7,0.002]
[1765992206651,5.84022,2871.7,2870.7,0.002]
[1765992206848,3.1138,2871.7,2870.7,0.002]
[1765992207221,0.48901684,2872.7,2870.7,0.002]
[1765992207420,3.1138,2872.1,2870.7,0.002]
[1765992207752,2.272182,2871.9,2870.7,0.002]
[1765992208044,5.40075629,2871.8,2870.7,0.002]
[1765992208247,2.272262,2871.7,2870.7,0.002]
[1765992208450,3.1138,2871.6,2870.7,0.002]
[1765992208645,5.3338,2871.5,2870.7,0.002]
[1765992208817,5.86865743,2871.5,2870.7,0.002]
[1765992209015,5.3338,2871.5,2870.7,0.002]
[1765992209219,2.034302,2872.6,2870.9,0.405504]
[1765992209419,5.3338,2872.5,2871.0,6.96621386]
[1765992209620,0.566,2872.6,2871.0,6.96621386]
[1765992209621,0.566,2872.6,2871.1,0.405504]
[1765992209830,3.297754,2872.7,2871.1,0.405504]
[1765992210044,8.254595,2872.3,2871.2,0.73717179]
[1765992210441,3.1138,2872.0,2871.2,0.73717179]
[1765992210722,0.566,2872.3,2871.1,0.566]
[1765992211218,3.1138,2872.1,2871.1,0.566]
[1765992211418,3.1138,2871.9,2871.1,0.566]
[1765992211731,3.1138,2871.8,2871.1,0.566]
[1765992212120,0.46438023,2872.4,2871.1,0.566]
[1765992212360,3.6798,2872.3,2871.1,0.566]
[1765992212522,3.6798,2872.3,2871.1,4.04897548]
[1765992212860,6.537723,2872.2,2871.1,0.566]
[1765992213361,9.651523,2872.2,2871.1,0.566]
[1765992213527,0.01477429,2872.1,2871.1,0.566]
[1765992213718,0.566,2872.3,2871.1,0.566]
[1765992214138,0.566,2872.3,2871.2,0.40510776]
[1765992214520,9.140135,2872.5,2871.2,0.40510776]
[1765992214717,0.566,2872.6,2871.2,0.40510776]
[1765992214718,3.1138,2872.3,2871.2,0.40510776]
[1765992214931,2.22,2872.8,2871.3,0.86988423]
[1765992215350,4.148202,2872.7,2871.3,0.86988423]
[1765992215652,2.22,2872.8,2871.5,0.405504]
[1765992215959,2.22,2872.8,2871.5,0.86988423]
[1765992216169,0.001,2872.9,2871.6,0.02463661]
[1765992216524,3.1138,2873.7,2872.0,0.86988423]
[1765992216763,3.1138,2873.6,2872.2,0.405504]
[1765992217012,11.010042,2874.0,2872.2,0.405504]
[1765992217170,5.672404,2873.8,2872.2,0.405504]
[1765992217463,0.567,2874.1,2872.7,0.405504]
[1765992217628,0.567,2874.1,2872.8,1.30278378]
[1765992217828,0.001,2874.1,2872.8,1.30278378]
[1765992218028,2.42347,2874.0,2872.8,1.30278378]
[1765992218258,0.001,2874.1,2872.8,1.30278378]
[1765992218459,2.01509,2874.0,2872.8,1.30278378]
[1765992218759,2.216699,2874.0,2872.8,1.30278378]
[1765992218961,3.1138,2873.9,2872.8,1.30278378]
[1765992219542,0.201609,2874.0,2872.8,4.78364847]
[1765992219842,0.001,2874.1,2872.8,4.78364847]
[1765992220049,0.001,2874.1,2872.8,8.264573]
[1765992220247,0.001,2874.1,2872.8,1.30278378]
[1765992220248,0.001,2874.0,2872.8,1.30278378]
[1765992220463,0.001,2874.0,2872.5,0.48901684]
[1765992220464,0.001,2874.0,2872.5,0.46438023]
[1765992220769,0.001,2874.0,2872.6,0.566]
[1765992220770,3.0115,2873.7,2872.6,0.566]
[1765992220970,2.2019,2873.8,2872.6,0.566]
[1765992221371,5.2134,2873.8,2872.6,0.566]
[1765992221669,5.2134,2873.5,2872.6,0.566]
[1765992221865,0.01477429,2873.7,2872.6,0.566]
[1765992221866,0.566,2873.7,2872.6,0.566]
[1765992222044,7.150957,2873.5,2872.6,0.566]
[1765992222247,6.267957,2873.5,2872.6,0.566]
[1765992222453,9.279457,2873.5,2872.6,0.566]
[1765992222655,4.08501297,2873.5,2872.6,0.566]
[1765992222837,2.2019,2873.6,2872.6,0.566]
[1765992223039,0.001,2874.0,2872.7,0.86988423]
[1765992223270,0.001,2874.0,2872.8,0.405504]
[1765992223482,0.001,2874.0,2872.9,6.96160672]
[1765992223854,0.001,2874.0,2872.9,3.48080336]
[1765992224052,0.001,2874.0,2873.0,0.73672242]
[1765992225439,0.001,2874.0,2873.1,0.405504]
[1765992225640,0.001,2874.0,2873.3,0.405504]
[1765992227075,0.001,2874.0,2872.9,0.48901684]
[1765992227251,3.0115,2873.9,2872.6,0.405504]
[1765992227573,5.2134,2873.5,2872.0,3.50641094]
[1765992227781,3.0115,2873.4,2872.4,0.566]
[1765992228072,13.959998,2873.6,2872.4,1.03038023]
[1765992228281,3.0115,2873.6,2872.4,1.03038023]
[1765992228578,3.0115,2873.6,2872.5,0.86988423]
[1765992228763,3.0115,2873.6,2872.6,0.49172769]
[1765992229271,3.0115,2873.4,2872.6,0.49172769]
[1765992229690,2.2019,2873.5,2872.6,0.49172769]
[1765992229851,0.001,2874.0,2872.7,0.405504]
[1765992230046,30.0,2873.9,2872.7,1.34828398]
[1765992230253,0.001,2874.0,2872.9,0.86988423]
[1765992230557,0.001,2874.0,2873.2,0.021]
[1765992231570,0.001,2874.0,2873.5,0.405504]
[1765992231762,0.001,2874.0,2873.8,0.021]
[1765992234076,0.001,2874.0,2873.7,0.021]
[1765992235579,0.001,2874.0,2873.4,0.566]
[1765992237692,0.001,2874.0,2873.4,1.03038023]
[1765992238190,0.001,2874.0,2873.5,0.86988423]
[1765992238486,0.001,2874.0,2873.7,0.021]
[1765992239891,0.001,2874.0,2873.9,0.021]
[1765992240099,0.566,2875.2,2874.0,0.405504]
[1765992240100,0.001,2875.2,2874.0,0.405504]
[1765992240300,0.001,2875.2,2874.5,0.021]
[1765992240505,0.001,2875.2,2874.8,0.021]
[1765992240999,0.001,2875.2,2875.1,0.021]
[1765992241300,0.001,2875.2,2875.1,0.426504]
[1765992241467,0.001,2875.2,2875.1,0.991504]
[1765992241798,0.001,2875.2,2875.1,4.46964389]
[1765992242018,0.001,2875.2,2875.1,5.31087195]
[1765992242207,0.001,2875.2,2875.1,4.74587195]
[1765992242392,0.001,2875.2,2875.1,5.31087195]
[1765992242897,0.001,2875.2,2875.1,1.83273206]
[1765992243199,0.001,2875.2,2875.1,4.46964389]
[1765992243603,0.001,2875.2,2875.1,0.426504]
[1765992243901,0.001,2875.2,2875.1,0.89088423]
[1765992244102,0.001,2875.2,2875.1,1.45588423]
[1765992244602,0.001,2876.3,2875.2,0.426504]
[1765992244803,0.001,2876.3,2875.4,0.021]
[1765992244990,0.001,2876.3,2875.6,0.405504]
[1765992245190,0.001,2876.3,2875.8,0.426504]
[1765992245503,0.001,2876.3,2875.8,0.021]
[1765992246175,4.46305,2876.2,2874.5,4.50181495]
[1765992246371,3.0115,2875.9,2874.9,0.021]
[1765992246576,0.001,2875.2,2875.0,0.89088423]
[1765992246776,0.001,2875.2,2875.1,0.991504]
[1765992247417,0.001,2875.2,2874.7,0.021]
[1765992247606,0.001,2875.2,2875.1,0.586]
[1765992248310,0.001,2875.2,2875.1,4.52852012]
[1765992248816,0.001,2876.3,2875.3,0.021]
[1765992249119,0.001,2876.3,2875.7,0.021]
[1765992249332,0.001,2876.3,2876.0,0.021]
[1765992250018,0.001,2876.3,2876.1,0.565]
[1765992250684,0.001,2876.3,2876.2,4.04180967]
[1765992251025,0.001,2876.3,2876.1,3.92167419]
[1765992251026,0.001,2876.3,2875.8,3.47723495]
[1765992251225,0.001,2876.3,2876.0,0.021]
[1765992251718,0.001,2876.3,2875.5,0.46438023]
[1765992251719,3.0836,2876.2,2875.8,0.565]
[1765992252516,0.001,2876.3,2875.8,4.04229038]
[1765992252722,0.001,2876.3,2875.8,1.31697004]
[1765992253015,0.001,2876.3,2876.0,0.021]
[1765992253425,3.0846,2876.3,2875.3,3.4778081]
[1765992253592,2.2509,2876.3,2875.4,0.565]
[1765992253918,3.0836,2876.2,2875.4,0.565]
[1765992254124,3.0836,2876.0,2874.9,3.47827637]
[1765992254428,3.0836,2875.8,2874.8,0.18967214]
[1765992254715,0.001,2876.3,2874.8,0.18967214]
[1765992254716,5.3335,2875.7,2874.8,0.18967214]
[1765992254874,5.34827429,2875.7,2874.9,0.565]
[1765992255078,0.001,2876.3,2874.9,0.565]
[1765992255273,3.0836,2875.8,2874.9,0.565]
[1765992255514,3.09837429,2875.8,2875.0,0.565]
[1765992256126,19.066346,2875.7,2873.3,3.48027096]
[1765992256284,3.0836,2875.5,2874.7,3.47862105]
[1765992256480,3.0836,2875.9,2874.2,0.43014061]
[1765992256679,0.001,2876.3,2874.2,0.43014061]
[1765992256680,3.0836,2876.0,2874.9,3.47837708]
[1765992256893,0.01477429,2875.9,2875.0,0.565]
[1765992257281,0.01477429,2875.9,2875.1,0.565]
[1765992257481,0.54960172,2875.9,2875.1,0.565]
[1765992257779,0.001,2876.3,2875.1,0.565]
[1765992258010,7.221813,2876.2,2875.1,0.565]
[1765992258194,2.2499,2876.0,2875.1,0.565]
[1765992258404,0.001,2876.3,2875.1,4.043101]
[1765992258633,7.165533,2876.2,2875.1,3.478101]
[1765992258806,6.0501533,2876.1,2875.2,0.565]
[1765992259002,0.7166533,2876.1,2875.2,0.565]
[1765992259228,0.001,2876.3,2874.2,0.02463661]
[1765992259229,3.0836,2875.8,2874.2,0.02463661]
[1765992259530,5.3335,2875.7,2874.8,0.46438023]
[1765992259890,5.3335,2875.7,2874.9,0.565]
[1765992261038,5.3335,2875.7,2875.0,0.002]
[1765992261233,5.86685,2875.7,2875.0,0.002]
[1765992261441,2.78325,2875.7,2875.0,0.002]
[1765992261607,3.0836,2875.6,2875.0,0.002]
[1765992261808,3.09837429,2875.6,2875.0,0.567]
[1765992262599,5.3335,2875.4,2874.1,0.46638023]
[1765992262803,3.0836,2875.3,2874.3,3.94348319]
[1765992263026,3.0836,2875.3,2874.3,4.74245883]
[1765992263404,3.0836,2875.3,2874.3,0.79897564]
[1765992263843,3.0836,2875.1,2873.8,0.002]
[1765992264045,3.0836,2874.8,2874.0,0.565]
[1765992264228,5.3335,2875.2,2874.0,1.02938023]
[1765992264401,5.315715,2875.1,2874.0,0.567]
[1765992264607,3.9443064,2875.1,2874.1,0.40484932]
[1765992264835,3.9443064,2875.1,2874.0,4.04646774]
[1765992265141,3.9443064,2875.1,2874.0,0.567]
[1765992265320,3.9443064,2875.1,2874.0,4.04646468]
[1765992265643,6.1942064,2875.1,2874.0,4.04646468]
[1765992266157,5.3335,2875.0,2874.0,4.04646468]
[1765992266355,5.3335,2875.0,2874.1,0.79924359]
[1765992266564,0.8607064,2875.1,2874.1,0.79924359]
[1765992266565,5.3335,2874.9,2874.1,0.79924359]
[1765992266944,5.3335,2874.9,2874.0,1.02938023]
[1765992267150,5.3335,2874.9,2874.0,0.565]
[1765992267335,5.3335,2874.9,2874.0,4.04444127]
[1765992268057,3.0836,2874.8,2873.9,0.002]
[1765992268259,0.01477429,2874.7,2874.0,0.565]
[1765992268562,5.3335,2874.8,2874.1,0.565]
[1765992268770,0.8607064,2875.1,2874.1,0.565]
[1765992268940,5.3335,2875.2,2874.1,0.565]
[1765992268941,5.3335,2875.2,2874.2,0.002]
[1765992269263,9.4736,2875.6,2874.2,0.002]
[1765992269476,3.0836,2875.6,2874.3,0.002]
[1765992269671,3.0846,2875.9,2874.5,0.002]
[1765992269955,3.09937429,2875.9,2874.7,0.002]
[1765992270151,3.46581172,2875.9,2874.7,0.002]
[1765992270347,2.22601,2875.8,2874.7,0.002]
[1765992270660,2.22601,2875.7,2874.7,0.002]
[1765992270855,0.01477429,2875.7,2874.8,0.565]
[1765992271074,0.001,2875.7,2874.8,0.565]
[1765992271362,2.2499,2875.6,2874.5,0.002]
[1765992271654,2.2499,2875.2,2874.9,0.565]
[1765992271857,5.3335,2875.6,2874.5,3.48078385]
[1765992272031,0.01477429,2875.5,2874.9,0.565]
[1765992272231,0.001,2875.7,2874.6,6.95747111]
[1765992272451,0.001,2875.7,2875.3,8.93270666]
[1765992272666,0.001,2875.7,2875.6,0.405504]
[1765992273460,0.001,2875.7,2875.6,2.616004]
[1765992273764,0.001,2875.7,2874.5,0.567]
[1765992273765,3.0836,2875.4,2874.5,0.567]
[1765992273956,2.2105,2875.1,2874.5,0.567]
[1765992274152,5.3335,2874.7,2874.5,0.002]
[1765992274356,3.0836,2874.5,2873.9,0.002]
[1765992274560,2.2105,2874.2,2873.9,0.002]
[1765992274872,7.544,2874.0,2873.8,0.002]
[1765992275044,2.2105,2873.9,2873.8,0.002]
[1765992275248,2.2105,2873.6,2873.3,0.002]
[1765992275563,3.0836,2873.7,2873.3,0.002]
[1765992275564,4.4044,2874.2,2873.3,0.002]
[1765992275766,2.2045,2873.8,2873.3,0.002]
[1765992275953,0.565,2874.7,2873.3,0.002]
[1765992275954,2.2045,2873.5,2873.3,0.002]
[1765992276259,2.2045,2873.6,2873.3,0.002]
[1765992276430,2.2499,2873.7,2873.3,0.002]
[1765992276431,2.2045,2874.2,2873.3,0.002]
[1765992276631,2.21727429,2874.2,2873.3,0.40674774]
[1765992276849,6.3995,2874.1,2873.3,0.40674774]
[1765992277054,2.2045,2874.2,2873.3,0.40674774]
[1765992277331,2.2045,2874.1,2873.3,0.40674774]
[1765992278144,4.5065,2874.1,2873.3,0.40674774]
[1765992278467,2.2045,2874.0,2873.3,0.40674774]
[1765992278671,2.2045,2873.4,2872.6,0.567]
[1765992278969,0.01277429,2873.9,2872.6,0.567]
[1765992278970,3.0836,2873.9,2872.6,0.567]
[1765992279262,3.0836,2873.9,2872.3,3.48150693]
[1765992279263,4.4544,2872.9,2871.9,3.48201476]
[1765992279469,4.4544,2872.9,2872.0,0.565]
[1765992279470,2.2045,2872.8,2872.0,0.565]
[1765992279672,2.2045,2872.8,2872.1,3.48375562]
[1765992279863,2.2045,2872.8,2872.3,0.46438023]
[1765992280035,0.9005,2873.7,2872.7,0.46438023]
[1765992280363,0.9005,2873.5,2873.3,0.002]
[1765992280575,3.8477,2873.9,2873.3,0.002]
[1765992280864,0.9005,2873.6,2873.3,0.002]
[1765992281435,0.565,2874.3,2873.3,0.002]
[1765992281436,0.9005,2873.9,2873.3,0.002]
[1765992281778,9.74781429,2873.9,2873.3,0.002]
[1765992281948,0.9005,2873.6,2873.3,0.002]
[1765992282967,0.9005,2873.9,2873.3,0.002]
[1765992283385,6.1588,2873.6,2873.3,0.002]
[1765992283672,0.01277429,2873.9,2872.6,0.46438023]
[1765992283673,0.9005,2873.2,2872.6,0.46438023]
[1765992283976,0.9005,2873.5,2872.7,0.46438023]
[1765992284172,0.9005,2873.5,2872.7,3.48098891]
[1765992284461,0.9005,2873.5,2872.8,0.34809889]
[1765992284666,0.9005,2873.5,2872.8,3.82895581]
[1765992284871,0.9005,2873.5,2872.8,7.30988034]
[1765992285087,0.9005,2873.5,2872.8,0.34809889]
[1765992285281,2.3111,2873.6,2872.8,3.48089109]
[1765992285482,0.9005,2873.4,2872.5,0.565]
[1765992285771,0.9005,2873.4,2872.7,0.46438023]
[1765992285951,0.9005,2873.5,2872.7,0.46438023]
[1765992286147,0.9005,2873.5,2872.6,3.94549166]
[1765992286349,0.9005,2873.4,2872.8,3.48092098]
[1765992287105,0.565,2873.9,2872.8,6.96184551]
[1765992287106,0.9005,2873.9,2872.8,6.96184551]
[1765992287237,0.9005,2874.0,2872.9,0.86988423]
[1765992287443,0.9005,2874.0,2873.1,0.405504]
[1765992287661,0.9005,2874.1,2873.1,0.405504]
[1765992288057,0.9005,2874.0,2873.1,0.405504]
[1765992288278,5.2583,2874.0,2873.0,0.59980682]
[1765992288567,0.9005,2874.1,2873.0,0.565]
[1765992288771,0.9005,2874.1,2873.2,6.96087984]
[1765992288970,0.9005,2874.1,2873.3,0.73663838]
[1765992289275,0.9005,2874.1,2873.4,0.405504]
[1765992289441,0.8985,2874.1,2873.5,0.565]
[1765992290144,0.001,2874.2,2873.6,0.405504]
[1765992290549,0.001,2874.2,2873.5,0.565]
[1765992290749,0.001,2874.2,2874.1,0.405504]
[1765992290953,0.001,2874.2,2874.1,2.17132885]
[1765992291672,0.001,2874.2,2874.1,1.60632885]
[1765992291871,0.001,2874.2,2874.1,2.17132885]
[1765992292072,0.001,2874.2,2874.1,0.46438023]
[1765992292888,0.001,2874.2,2874.1,3.94373028]
[1765992293185,0.001,2874.2,2874.1,4.34923428]
[1765992294496,0.001,2875.4,2874.2,0.405504]
[1765992294658,0.001,2876.3,2874.7,13.718642]
[1765992294659,1e-08,2875.9,2874.7,13.718642]
[1765992294858,0.001,2876.3,2875.5,0.46438023]
[1765992295058,0.001,2876.3,2875.6,0.970504]
[1765992295504,0.001,2876.3,2875.6,0.405504]
[1765992295670,0.001,2876.3,2875.8,0.405504]
[1765992296990,0.001,2876.3,2875.7,0.565]
[1765992296991,0.001,2876.3,2876.0,0.86988423]
[1765992297161,0.001,2876.3,2876.2,0.405504]
[1765992297361,0.001,2876.3,2876.2,0.970504]
[1765992297997,0.001,2876.3,2876.2,0.405504]
[1765992298159,0.001,2876.3,2876.2,0.970504]
[1765992298763,0.001,2876.3,2876.2,0.99514061]
[1765992298992,0.001,2876.3,2876.2,4.69511824]
[1765992300094,0.001,2877.5,2876.2,15.58992748]
[1765992300288,0.001,2877.5,2876.6,0.02463661]
[1765992300494,0.001,2877.5,2876.8,0.405504]
[1765992300869,0.001,2877.5,2876.6,0.02463661]
[1765992301075,0.001,2877.5,2876.7,0.564]
[1765992301270,0.001,2877.5,2876.8,0.564]
[1765992301271,2.9472,2877.4,2876.8,0.564]
[1765992301465,0.52703,2877.5,2876.8,0.564]
[1765992301666,0.52703,2877.5,2876.5,0.46438023]
[1765992301867,0.001,2877.5,2876.6,0.969504]
[1765992302073,0.001,2877.5,2876.9,0.02463661]
[1765992302275,0.001,2877.5,2877.0,0.564]
[1765992302979,0.001,2877.5,2876.4,6.9531262]
[1765992303176,0.29592,2877.5,2876.5,0.564]
[1765992303422,0.29592,2877.5,2876.6,0.05939987]
[1765992303423,0.001,2877.5,2876.6,0.05939987]
[1765992303574,0.001,2877.5,2876.7,0.405504]
[1765992303775,0.001,2877.5,2876.6,0.43014061]
[1765992303993,0.001,2877.5,2876.8,0.02463661]
[1765992304581,0.001,2877.5,2877.0,0.02463661]
[1765992304783,0.001,2877.5,2877.2,0.405504]
[1765992305102,0.001,2877.5,2877.4,0.46438023]
[1765992306510,0.001,2877.5,2877.3,0.46438023]
[1765992306805,0.001,2877.5,2877.4,0.564]
[1765992307215,0.001,2877.5,2877.3,0.46438023]
[1765992307418,0.001,2877.5,2877.3,0.564]
[1765992307723,5.2583,2877.3,2876.4,0.13921347]
[1765992307897,5.2583,2877.1,2875.5,3.725538]
[1765992308100,5.78413,2877.0,2876.0,3.47699047]
[1765992308428,5.78413,2877.0,2875.7,0.564]
[1765992308429,5.2583,2876.5,2875.7,0.564]
[1765992308643,2.3111,2876.5,2875.7,0.564]
[1765992309033,5.1939,2876.5,2875.8,3.47721746]
[1765992309618,5.1939,2876.5,2875.7,0.564]
[1765992309818,5.1939,2876.5,2875.7,4.04139634]
[1765992310332,5.1673,2876.0,2875.3,0.564]
[1765992310531,2.89557429,2875.9,2874.9,0.46438023]
[1765992310726,0.51939,2876.5,2875.0,0.564]
[1765992310919,3.36749,2876.5,2875.1,0.86988423]